fUST/lending_fUST_20250716
["ID","MTS","AMOUNT","RATE_DAILY","PERIOD"]
[372460187,1752651050329,-460.0,0.00022191,2]
[372460188,1752651050338,-323.2,0.00022191,2]
[372460189,1752651050349,-1514.14,0.00022191,2]
[372460190,1752651050359,-460.0,0.00022191,2]
[372460191,1752651050368,-460.0,0.00022191,2]
[372460192,1752651050378,-686.11,0.00022191,2]
[372460193,1752651050388,-460.0,0.00022191,2]
[372460194,1752651050397,-3082.45,0.00022191,2]
[372460195,1752651050407,-460.0,0.00022191,2]
[372460196,1752651050417,-1189.86,0.00022191,2]
[372460197,1752651050427,-460.0,0.00022191,2]
[372460198,1752651050437,-881.34,0.00022191,2]
[372460199,1752651050447,-848.06,0.00022191,2]
[372460200,1752651050457,-974.87,0.00022191,2]
[372460201,1752651050468,-1800.72,0.00022191,2]
[372460202,1752651050477,-744.66,0.00022191,2]
[372460203,1752651050488,-3127.46,0.00022191,2]
[372460204,1752651050497,-460.0,0.00022191,2]
[372460205,1752651050508,-460.0,0.00022191,2]
[372460206,1752651050518,-498.01,0.00022191,2]
[372460207,1752651050527,-460.0,0.00022191,2]
[372460208,1752651050537,-500.0,0.00022192,2]
[372460209,1752651050547,-151.0,0.000222,7]
[372460210,1752651050557,-1164.45303158,0.00022263,2]
[372460211,1752651050566,-460.0,0.00022321,2]
[372460212,1752651050576,-468.76620667,0.00022321,2]
[372460213,1752651050586,-640.7,0.00022321,2]
[372460214,1752651050596,-764.16,0.00022321,2]
[372460215,1752651050607,-474.55,0.00022321,2]
[372460216,1752651050618,-405.213659,0.00022465,7]
[372460217,1752651050629,-405.213659,0.00022465,7]
[372460218,1752651050639,-151.0,0.00022465,7]
[372460219,1752651050650,-151.0,0.00022465,7]
[372460220,1752651050660,-1514.14,0.00022465,2]
[372460221,1752651050670,-460.0,0.00022465,2]
[372460222,1752651050679,-460.0,0.00022465,2]
[372460223,1752651050689,-686.11,0.00022465,2]
[372460224,1752651050699,-460.0,0.00022465,2]
[372460225,1752651050708,-3082.45,0.00022465,2]
[372460226,1752651050718,-460.0,0.00022465,2]
[372460227,1752651050728,-1189.86,0.00022465,2]
[372460228,1752651050738,-460.0,0.00022465,2]
[372460229,1752651050747,-881.34,0.00022465,2]
[372460230,1752651050757,-848.06,0.00022465,2]
[372460231,1752651050767,-974.87,0.00022465,2]
[372460232,1752651050777,-1800.72,0.00022465,2]
[372460233,1752651050787,-744.66,0.00022465,2]
[372460234,1752651050797,-3127.46,0.00022465,2]
[372460235,1752651050806,-460.0,0.00022465,2]
[372460236,1752651050816,-460.0,0.00022465,2]
[372460237,1752651050826,-498.01,0.00022465,2]
[372460238,1752651050835,-460.0,0.00022465,2]
[372460239,1752651050845,-500.0,0.00022466,2]
[372460240,1752651050855,-3538.32,0.00022489,3]
[372460241,1752651050864,-1303.16,0.000225,7]
[372460242,1752651050874,-3747.9195766,0.000225,2]
[372460243,1752651050934,-460.0,0.00019178,2]
[372460244,1752651050944,-460.75706086,0.00019178,2]
[372460245,1752651050953,-649.1397946,0.000225,2]
[372460246,1752651051103,-460.0,0.00019178,2]
[372460247,1752651051113,-460.0,0.00019178,2]
[372460248,1752651051123,-28.46,0.00019452,2]
[372460249,1752651051136,-431.54,0.00019452,2]
[372460250,1752651051147,-460.0,0.00019452,2]
[372460251,1752651051156,-460.0,0.00019726,2]
[372460252,1752651051166,-439.83,0.0002,2]
[372460253,1752651051176,-2293.80632308,0.000225,2]
[372460254,1752651051254,-460.0,0.00019178,2]
[372460255,1752651051263,-274.85470416,0.000225,2]
[372460256,1752651051275,-1133.38377717,0.000225,2]
[372460257,1752651051287,-330.85826451,0.000225,2]
[372460258,1752651051301,-13026.30755988,0.000225,2]
[372460259,1752651051310,-1793.70857859,0.00022529,2]
[372460260,1752651051321,-5000.0,0.00022546,3]
[372460261,1752651051330,-158.03292145,0.00022562,4]
[372460262,1752651051339,-159.13648698,0.00022562,4]
[372460263,1752651051349,-5068.62,0.00022589,3]
[372460264,1752651051365,-460.0,0.00022595,2]
[372460265,1752651051379,-640.7,0.00022595,2]
[372460266,1752651051388,-764.16,0.00022595,2]
[372460267,1752651051398,-474.55,0.00022595,2]
[372460268,1752651051408,-151.0,0.000226,8]
[372460269,1752651051549,-8000.0,0.00022612,3]
[372460270,1752651051559,-560.0,0.00022646,2]
[372460271,1752651051568,-557.0,0.00022661,2]
[372460272,1752651051578,-587.0,0.00022662,2]
[372460273,1752651051588,-9000.0,0.00022708,3]
[372460274,1752651051597,-1168.38388793,0.00022739,2]
[372460275,1752651051609,-345.75611207,0.00022739,2]
[372460276,1752651051619,-460.0,0.00022739,2]
[372460277,1752651051629,-460.0,0.00022739,2]
[372460278,1752651051639,-190.57622109,0.00022739,2]
[372460279,1752651051867,17727.4,0.00027397,120]
[372460281,1752651140876,-948.0,0.00019077,2]
[372460282,1752651140899,-300.0,0.00019077,2]
[372460283,1752651140922,-20000.0,0.00019078,2]
[372460284,1752651140944,-460.0,0.00019178,2]
[372460285,1752651140967,-460.0,0.00019178,2]
[372460286,1752651140987,-463.31717469,0.00019178,2]
[372460287,1752651141014,-460.0,0.00019178,2]
[372460288,1752651141038,-460.0,0.00019178,2]
[372460289,1752651141059,-460.0,0.00019178,2]
[372460290,1752651141081,-460.0,0.00019178,2]
[372460291,1752651141104,-460.0,0.00019178,2]
[372460292,1752651141124,-460.0,0.00019178,2]
[372460293,1752651141147,-648.9,0.00019178,2]
[372460294,1752651141171,-460.0,0.00019178,2]
[372460295,1752651141194,-1891.21,0.00019178,2]
[372460296,1752651141214,-464.22559505,0.00019178,2]
[372460297,1752651141234,-458.0,0.00019178,2]
[372460298,1752651141255,-460.0,0.00019178,2]
[372460299,1752651141277,-461.05245302,0.00019178,2]
[372460300,1752651141302,-460.0,0.00019178,2]
[372460301,1752651141331,-460.0,0.00019178,2]
[372460302,1752651141355,-460.0,0.00019178,2]
[372460303,1752651141377,-460.0,0.00019178,2]
[372460304,1752651141399,-460.0,0.00019178,2]
[372460305,1752651141424,-460.0,0.00019178,2]
[372460306,1752651141446,-460.0,0.00019178,2]
[372460307,1752651141467,-460.0,0.00019178,2]
[372460308,1752651141488,-460.0,0.00019178,2]
[372460309,1752651141510,-465.07522076,0.00019178,2]
[372460310,1752651141531,-391.32053451,0.00019178,2]
[372460311,1752651141553,-460.0,0.00019178,2]
[372460312,1752651141573,-460.0,0.00019178,2]
[372460313,1752651141595,-580.72,0.00019178,2]
[372460314,1752651141616,-460.0,0.00019178,2]
[372460315,1752651141637,-460.0,0.00019178,2]
[372460316,1752651141659,-460.0,0.00019178,2]
[372460317,1752651141679,-460.0,0.00019178,2]
[372460318,1752651141699,-457.0,0.00019178,2]
[372460319,1752651141720,-460.0,0.00019178,2]
[372460320,1752651141741,-460.0,0.00019178,2]
[372460321,1752651141762,-460.0,0.00019178,2]
[372460322,1752651141783,-460.0,0.00019178,2]
[372460323,1752651141804,-460.0,0.00019178,2]
[372460324,1752651141824,-461.45974363,0.00019178,2]
[372460325,1752651141844,-460.0,0.00019178,2]
[372460326,1752651141865,-527.16458066,0.00019178,2]
[372460327,1752651141886,-460.0,0.00019178,2]
[372460328,1752651141909,-460.0,0.00019178,2]
[372460329,1752651142037,-460.0,0.00019178,2]
[372460330,1752651142059,-460.0,0.00019178,2]
[372460331,1752651142082,-460.0,0.00019178,2]
[372460332,1752651142103,-460.0,0.00019178,2]
[372460333,1752651142124,-309.02642257,0.00019178,2]
[372460334,1752651142146,-825.33,0.00019178,2]
[372460335,1752651142167,-460.0,0.00019178,2]
[372460336,1752651142187,-437.19827511,0.00019352,2]
[372460340,1752651817855,4292.05409403,0.000181,2]
[372460341,1752651863491,191.307124,0.00017874,2]
[372460344,1752651954127,-1200.0,0.00018518,2]
[372460345,1752651954150,-300.0,0.00018518,2]
[372460346,1752651954184,-300.0,0.00018518,2]
[372460347,1752651954209,-477.23699654,0.00018518,2]
[372460348,1752651956093,-722.76300346,0.00018518,2]
[372460349,1752651956115,-300.0,0.00018518,2]
[372460350,1752651956136,-527.62375756,0.00018519,2]
[372460351,1752651956159,-20.75826362,0.00018519,2]
[372460352,1752652030106,-509.77476595,0.00018518,2]
[372460353,1752652030129,-1200.0,0.00018518,2]
[372460354,1752652030152,-300.0,0.00018518,2]
[372460355,1752652030175,-191.56810914,0.00018519,2]
[372460356,1752652030197,-233.33990073,0.00018519,2]
[372460357,1752652030221,-180.06490241,0.00018519,2]
[372460358,1752652030245,-250.0,0.00018519,2]
[372460359,1752652030268,-500.0,0.00018519,2]
[372460360,1752652030290,-527.25008012,0.00018519,2]
[372460361,1752652030312,-500.0,0.00018519,2]
[372460362,1752652030333,-500.0,0.00018519,2]
[372460363,1752652030358,-500.0,0.00018519,2]
[372460364,1752652030380,-197.72223774,0.00018519,2]
[372460365,1752652030402,-500.0,0.00018519,2]
[372460366,1752652030427,-500.0,0.00018519,2]
[372460367,1752652030448,-500.0,0.00018519,2]
[372460368,1752652030472,-466.55790172,0.00018519,2]
[372460369,1752652030499,-500.0,0.00018519,2]
[372460370,1752652030521,-486.14976277,0.00018519,2]
[372460371,1752652030546,-500.0,0.00018519,2]
[372460372,1752652030574,-500.0,0.00018519,2]
[372460373,1752652030598,-383.85994937,0.00018519,2]
[372460374,1752652031164,-116.14005063,0.00018519,2]
[372460375,1752652031190,-543.93846394,0.00018519,2]
[372460376,1752652031216,-9670.07494436,0.0001852,2]
[372460377,1752652041081,-1172.35837052,0.0001852,2]
[372460378,1752652041436,3551.0,0.00018,10]
[372460379,1752652061044,1000.0,0.000181,2]
[372460381,1752652102217,360.6541,0.00013699,2]
[372460399,1752652232410,-296.0,0.00018519,2]
[372460400,1752652232422,-300.0,0.00018519,2]
[372460401,1752652232431,-78.38727299,0.00018519,2]
[372460402,1752652232443,-221.61272701,0.00018519,2]
[372460403,1752652232452,-246.65274543,0.00018519,2]
[372460404,1752652232479,-622.74808823,0.00018519,2]
[372460405,1752652232493,-330.59916634,0.00018519,2]
[372460406,1752652232503,-300.0,0.00018519,2]
[372460408,1752652232512,-300.0,0.00018519,2]
[372460409,1752652232522,-1401.46363945,0.0001852,2]
[372460412,1752652232551,-4881.12545618,0.0001852,2]
[372460416,1752652232563,-5136.34386289,0.0001852,2]
[372460419,1752652232573,-1282.4241263,0.00018726,2]
[372460422,1752652232583,-563.64233361,0.000188,4]
[372460426,1752652232592,-245.53376061,0.00018868,2]
[372460430,1752652232602,-592.10125467,0.000189,2]
[372460434,1752652232612,-1909.40427196,0.00019078,2]
[372460438,1752652232622,-460.0,0.00019178,2]
[372460442,1752652232632,-460.0,0.00019178,2]
[372460446,1752652232642,-460.0,0.00019178,2]
[372460449,1752652232651,-319.30387201,0.00019178,2]
[372460453,1752652232661,-460.0,0.00019178,2]
[372460456,1752652232671,-455.0,0.00019178,2]
[372460458,1752652232681,-459.96778187,0.00019178,2]
[372460461,1752652232691,-290.21356022,0.00019178,2]
[372460463,1752652232701,-460.0,0.00019178,2]
[372460465,1752652232711,-271.3500962,0.00019178,2]
[372460467,1752652232721,-462.90284206,0.00019178,2]
[372460468,1752652232731,-460.0,0.00019178,2]
[372460471,1752652232741,-460.0,0.00019178,2]
[372460472,1752652232751,-460.0,0.00019178,2]
[372460474,1752652232761,-460.0,0.00019178,2]
[372460476,1752652232771,-460.0,0.00019178,2]
[372460478,1752652232780,-460.0,0.00019178,2]
[372460479,1752652232790,-460.0,0.00019178,2]
[372460480,1752652232800,-460.0,0.00019178,2]
[372460482,1752652232809,-464.91052683,0.00019178,2]
[372460483,1752652232819,-460.0,0.00019178,2]
[372460485,1752652232829,-460.0,0.00019178,2]
[372460487,1752652232838,-460.0,0.00019178,2]
[372460489,1752652232848,-460.0,0.00019178,2]
[372460491,1752652232857,-460.0,0.00019178,2]
[372460493,1752652232868,-460.0,0.00019178,2]
[372460495,1752652232878,-460.0,0.00019178,2]
[372460497,1752652232887,-460.0,0.00019178,2]
[372460499,1752652232897,-460.0,0.00019178,2]
[372460501,1752652232906,-460.0,0.00019178,2]
[372460503,1752652232916,-460.0,0.00019178,2]
[372460505,1752652232926,-460.0,0.00019178,2]
[372460507,1752652232935,-300.0,0.00019178,2]
[372460509,1752652232946,-460.0,0.00019178,2]
[372460511,1752652232955,-460.0,0.00019178,2]
[372460513,1752652232965,-460.0,0.00019178,2]
[372460515,1752652232974,-460.0,0.00019178,2]
[372460517,1752652232983,-462.265465,0.00019178,2]
[372460519,1752652232993,-460.0,0.00019178,2]
[372460521,1752652233003,-460.0,0.00019178,2]
[372460523,1752652233012,-509.75336735,0.00019178,2]
[372460525,1752652233022,-460.0,0.00019178,2]
[372460527,1752652233031,-460.0,0.00019178,2]
[372460529,1752652233042,-460.0,0.00019178,2]
[372460531,1752652233052,-526.62317011,0.00019178,2]
[372460533,1752652233062,-460.0,0.00019178,2]
[372460535,1752652233071,-460.0,0.00019178,2]
[372460537,1752652233081,-460.0,0.00019178,2]
[372460539,1752652233091,-460.0,0.00019178,2]
[372460541,1752652233100,-460.0,0.00019178,2]
[372460543,1752652233109,-460.0,0.00019178,2]
[372460545,1752652233120,-460.0,0.00019178,2]
[372460547,1752652233130,-460.0,0.00019178,2]
[372460549,1752652233141,-468.76620667,0.00019178,2]
[372460551,1752652233151,-460.0,0.00019178,2]
[372460553,1752652233161,-460.0,0.00019178,2]
[372460555,1752652233171,-460.0,0.00019178,2]
[372460557,1752652233180,-460.0,0.00019178,2]
[372460558,1752652233190,-460.0,0.00019178,2]
[372460560,1752652233200,-460.0,0.00019178,2]
[372460563,1752652233211,-460.0,0.00019178,2]
[372460565,1752652233220,-500.0,0.00019178,2]
[372460566,1752652233230,-464.46892898,0.00019178,2]
[372460568,1752652233240,-460.0,0.00019178,2]
[372460570,1752652233250,-460.0,0.00019178,2]
[372460572,1752652233260,-460.0,0.00019178,2]
[372460574,1752652233270,-460.0,0.00019178,2]
[372460576,1752652233280,-460.0,0.00019178,2]
[372460578,1752652233289,-460.0,0.00019178,2]
[372460580,1752652233299,-460.0,0.00019178,2]
[372460582,1752652233309,-460.0,0.00019178,2]
[372460584,1752652233319,-460.0,0.00019178,2]
[372460586,1752652233328,-460.0,0.00019178,2]
[372460588,1752652233338,-460.0,0.00019178,2]
[372460590,1752652233347,-461.75245749,0.00019178,2]
[372460592,1752652233357,-460.0,0.00019178,2]
[372460593,1752652233369,-460.0,0.00019178,2]
[372460594,1752652233378,-460.0,0.00019178,2]
[372460595,1752652233388,-460.0,0.00019178,2]
[372460596,1752652233398,-460.0,0.00019178,2]
[372460597,1752652233408,-460.0,0.00019178,2]
[372460598,1752652233422,-460.0,0.00019178,2]
[372460599,1752652233432,-460.0,0.00019178,2]
[372460600,1752652233441,-460.0,0.00019178,2]
[372460601,1752652233451,-460.0,0.00019178,2]
[372460602,1752652233460,-460.0,0.00019178,2]
[372460603,1752652233470,-340.01452411,0.00019178,2]
[372460604,1752652233481,-460.0,0.00019178,2]
[372460605,1752652233490,-460.0,0.00019178,2]
[372460606,1752652233501,-460.0,0.00019178,2]
[372460607,1752652233511,-460.0,0.00019178,2]
[372460608,1752652233521,-460.0,0.00019178,2]
[372460609,1752652233531,-460.0,0.00019178,2]
[372460610,1752652233540,-460.0,0.00019178,2]
[372460611,1752652233550,-460.0,0.00019178,2]
[372460612,1752652233560,-460.0,0.00019178,2]
[372460613,1752652233570,-460.0,0.00019178,2]
[372460614,1752652233580,-460.0,0.00019178,2]
[372460615,1752652233590,-460.0,0.00019178,2]
[372460616,1752652233600,-460.0,0.00019178,2]
[372460617,1752652233612,-460.0,0.00019178,2]
[372460618,1752652233622,-460.0,0.00019178,2]
[372460619,1752652233631,-460.0,0.00019178,2]
[372460620,1752652233641,-460.0,0.00019178,2]
[372460621,1752652233651,-460.0,0.00019178,2]
[372460622,1752652233661,-460.0,0.00019178,2]
[372460623,1752652233671,-562.15,0.00019178,2]
[372460624,1752652233680,-225.93,0.00019178,2]
[372460625,1752652233690,-460.0,0.00019178,2]
[372460626,1752652233700,-460.0,0.00019178,2]
[372460627,1752652233710,-460.0,0.00019178,2]
[372460628,1752652233720,-675.97,0.00019178,2]
[372460629,1752652233729,-460.0,0.00019178,2]
[372460630,1752652233739,-2227.39,0.00019178,2]
[372460631,1752652233748,-579.88270059,0.00019178,2]
[372460632,1752652233758,-460.0,0.00019178,2]
[372460633,1752652233768,-460.0,0.00019178,2]
[372460634,1752652233778,-460.0,0.00019178,2]
[372460635,1752652233787,-1175.62,0.00019178,2]
[372460636,1752652233798,-460.0,0.00019178,2]
[372460637,1752652233807,-460.0,0.00019178,2]
[372460638,1752652233817,-602.93682966,0.00019178,2]
[372460639,1752652233826,-460.0,0.00019178,2]
[372460640,1752652233836,-460.0,0.00019178,2]
[372460641,1752652233845,-460.0,0.00019178,2]
[372460642,1752652233855,-290.42467385,0.00019178,2]
[372460643,1752652233865,-617.64,0.00019178,2]
[372460644,1752652233874,-3082.36,0.00019178,2]
[372460645,1752652233884,-460.0,0.00019178,2]
[372460646,1752652233894,-460.0,0.00019178,2]
[372460647,1752652233903,-460.0,0.00019178,2]
[372460648,1752652233913,-460.0,0.00019178,2]
[372460649,1752652233923,-307.95804198,0.00019178,2]
[372460650,1752652233932,-922.83,0.00019178,2]
[372460651,1752652233941,-460.0,0.00019178,2]
[372460652,1752652233951,-461.78145526,0.00019178,2]
[372460653,1752652233961,-460.0,0.00019178,2]
[372460654,1752652233971,-1058.35,0.00019178,2]
[372460655,1752652233981,-460.0,0.00019178,2]
[372460656,1752652233991,-460.0,0.00019178,2]
[372460657,1752652234001,-460.0,0.00019178,2]
[372460658,1752652234011,-460.0,0.00019178,2]
[372460659,1752652234021,-305.56089704,0.00019178,2]
[372460660,1752652234031,-460.0,0.00019178,2]
[372460661,1752652234040,-462.93732799,0.00019178,2]
[372460662,1752652234050,-460.0,0.00019178,2]
[372460663,1752652234060,-460.0,0.00019178,2]
[372460664,1752652234071,-460.0,0.00019178,2]
[372460665,1752652234080,-460.0,0.00019178,2]
[372460666,1752652234090,-912.42,0.00019178,2]
[372460667,1752652234100,-460.0,0.00019178,2]
[372460668,1752652234111,-460.711392,0.00019178,2]
[372460669,1752652234121,-803.09,0.00019178,2]
[372460670,1752652234130,-460.0,0.00019178,2]
[372460671,1752652234140,-334.5,0.00019178,2]
[372460672,1752652234150,-1711.13,0.00019178,2]
[372460673,1752652234160,-500.06,0.00019178,2]
[372460674,1752652234169,-460.0,0.00019178,2]
[372460675,1752652234179,-460.0,0.00019178,2]
[372460676,1752652234189,-460.0,0.00019178,2]
[372460677,1752652234199,-1855.88,0.00019178,2]
[372460678,1752652234208,-460.0,0.00019178,2]
[372460679,1752652234217,-460.0,0.00019178,2]
[372460680,1752652234227,-732.25,0.00019178,2]
[372460681,1752652234237,-1021.27,0.00019178,2]
[372460682,1752652234246,-460.0,0.00019178,2]
[372460683,1752652234256,-460.0,0.00019178,2]
[372460684,1752652234265,-461.2421383,0.00019178,2]
[372460685,1752652234275,-460.0,0.00019178,2]
[372460686,1752652234285,-460.0,0.00019178,2]
[372460687,1752652234294,-460.0,0.00019178,2]
[372460688,1752652234304,-460.0,0.00019178,2]
[372460689,1752652234314,-460.0,0.00019178,2]
[372460690,1752652234324,-460.0,0.00019178,2]
[372460691,1752652234333,-460.0,0.00019178,2]
[372460692,1752652234343,-460.0,0.00019178,2]
[372460693,1752652234353,-462.1507711,0.00019178,2]
[372460694,1752652234362,-460.0,0.00019178,2]
[372460695,1752652234371,-460.0,0.00019178,2]
[372460696,1752652234381,-460.0,0.00019178,2]
[372460697,1752652234390,-460.0,0.00019178,2]
[372460698,1752652234400,-460.0,0.00019178,2]
[372460699,1752652234410,-460.45448775,0.00019178,2]
[372460700,1752652234424,-460.0,0.00019178,2]
[372460701,1752652234434,-460.0,0.00019178,2]
[372460702,1752652234444,-203.166096,0.00019178,2]
[372460703,1752652234455,-4564.78774515,0.00019178,2]
[372460704,1752652234464,-309.52,0.00019442,3]
[372460705,1752652234474,-154.76,0.00019442,3]
[372460706,1752652234587,-464.28,0.00019442,3]
[372460707,1752652234598,-460.0,0.00019451,2]
[372460708,1752652234608,-460.0,0.00019451,2]
[372460709,1752652234619,-460.0,0.00019451,2]
[372460710,1752652234629,-460.0,0.00019451,2]
[372460711,1752652234639,-460.0,0.00019451,2]
[372460712,1752652234649,-233.30063606,0.00019451,2]
[372460713,1752652234658,-460.0,0.00019452,2]
[372460714,1752652234668,-460.0,0.00019452,2]
[372460715,1752652234678,-460.0,0.00019452,2]
[372460716,1752652234688,-460.0,0.00019452,2]
[372460717,1752652234698,-460.0,0.00019452,2]
[372460718,1752652234708,-464.88010798,0.00019452,2]
[372460719,1752652234718,-460.0,0.00019452,2]
[372460720,1752652234728,-460.0,0.00019452,2]
[372460721,1752652234738,-460.0,0.00019452,2]
[372460722,1752652234747,-460.0,0.00019452,2]
[372460723,1752652234757,-460.0,0.00019452,2]
[372460724,1752652234766,-460.0,0.00019452,2]
[372460725,1752652234776,-460.0,0.00019452,2]
[372460726,1752652234786,-460.0,0.00019452,2]
[372460727,1752652234795,-460.0,0.00019452,2]
[372460728,1752652234805,-460.0,0.00019452,2]
[372460729,1752652234814,-460.0,0.00019452,2]
[372460730,1752652234824,-460.0,0.00019452,2]
[372460731,1752652234834,-460.0,0.00019452,2]
[372460732,1752652234844,-460.0,0.00019452,2]
[372460733,1752652234854,-460.0,0.00019452,2]
[372460734,1752652234864,-550.01931813,0.00019452,2]
[372460735,1752652234874,-462.46780307,0.00019452,2]
[372460736,1752652234883,-460.0,0.00019452,2]
[372460737,1752652234893,-460.0,0.00019452,2]
[372460738,1752652234902,-460.0,0.00019452,2]
[372460739,1752652234912,-562.15,0.00019452,2]
[372460740,1752652234922,-460.0,0.00019452,2]
[372460741,1752652234932,-251.37219567,0.00019452,2]
[372460742,1752652234941,-460.0,0.00019452,2]
[372460743,1752652234951,-675.97,0.00019452,2]
[372460744,1752652234960,-2227.39,0.00019452,2]
[372460745,1752652234970,-460.0,0.00019452,2]
[372460746,1752652234980,-460.0,0.00019452,2]
[372460747,1752652234989,-1175.62,0.00019452,2]
[372460748,1752652234999,-460.0,0.00019452,2]
[372460749,1752652235009,-460.0,0.00019452,2]
[372460750,1752652235019,-617.64,0.00019452,2]
[372460751,1752652235028,-3082.36,0.00019452,2]
[372460752,1752652235038,-460.0,0.00019452,2]
[372460753,1752652235047,-922.83,0.00019452,2]
[372460754,1752652235057,-1058.35,0.00019452,2]
[372460755,1752652235067,-912.42,0.00019452,2]
[372460756,1752652235076,-460.0,0.00019452,2]
[372460757,1752652235085,-803.09,0.00019452,2]
[372460758,1752652235095,-1711.13,0.00019452,2]
[372460759,1752652235104,-1855.88,0.00019452,2]
[372460760,1752652235115,-732.25,0.00019452,2]
[372460761,1752652235124,-1021.27,0.00019452,2]
[372460762,1752652235134,-460.0,0.00019452,2]
[372460763,1752652235143,-460.0,0.00019452,2]
[372460764,1752652235153,-460.24963018,0.00019452,2]
[372460765,1752652235163,-460.0,0.00019452,2]
[372460766,1752652235173,-462.17062957,0.00019452,2]
[372460767,1752652235182,-921.72407562,0.00019559,2]
[372460768,1752652235193,-460.0,0.00019725,2]
[372460769,1752652235204,-389.10728305,0.00019725,2]
[372460770,1752652235213,-460.0,0.00019725,2]
[372460771,1752652235223,-460.0,0.00019725,2]
[372460772,1752652235232,-460.0,0.00019725,2]
[372460773,1752652235242,-460.0,0.00019726,2]
[372460774,1752652235252,-460.0,0.00019726,2]
[372460775,1752652235261,-460.0,0.00019726,2]
[372460776,1752652235271,-463.46790214,0.00019726,2]
[372460777,1752652235280,-460.0,0.00019726,2]
[372460778,1752652235290,-460.0,0.00019726,2]
[372460779,1752652235300,-535.36594916,0.00019726,2]
[372460780,1752652235309,-460.0,0.00019726,2]
[372460781,1752652235319,-460.0,0.00019726,2]
[372460782,1752652235329,-528.55,0.00019726,2]
[372460783,1752652235339,-460.0,0.00019726,2]
[372460784,1752652235349,-460.0,0.00019726,2]
[372460785,1752652235358,-460.0,0.00019726,2]
[372460786,1752652235370,-562.15,0.00019726,2]
[372460787,1752652235380,-460.0,0.00019726,2]
[372460788,1752652235389,-460.0,0.00019726,2]
[372460789,1752652235399,-675.97,0.00019726,2]
[372460790,1752652235410,-2227.39,0.00019726,2]
[372460791,1752652235423,-460.0,0.00019726,2]
[372460792,1752652235433,-460.0,0.00019726,2]
[372460793,1752652235442,-1175.62,0.00019726,2]
[372460794,1752652235452,-460.0,0.00019726,2]
[372460795,1752652235462,-460.0,0.00019726,2]
[372460796,1752652235472,-617.64,0.00019726,2]
[372460797,1752652235482,-3082.36,0.00019726,2]
[372460798,1752652235495,-460.0,0.00019726,2]
[372460799,1752652235506,-922.83,0.00019726,2]
[372460800,1752652235516,-1058.35,0.00019726,2]
[372460801,1752652235526,-912.42,0.00019726,2]
[372460802,1752652235536,-460.0,0.00019726,2]
[372460803,1752652235546,-803.09,0.00019726,2]
[372460804,1752652235555,-1711.13,0.00019726,2]
[372460805,1752652235565,-1855.88,0.00019726,2]
[372460806,1752652235575,-732.25,0.00019726,2]
[372460807,1752652235585,-1021.27,0.00019726,2]
[372460808,1752652235595,-460.0,0.00019726,2]
[372460809,1752652235604,-460.0,0.00019726,2]
[372460810,1752652235615,-460.0,0.00019726,2]
[372460811,1752652235624,-625.48,0.000198,2]